fUSD/lending_fUSD_20240802
["ID","MTS","AMOUNT","RATE_DAILY","PERIOD"]
[333908865,1722624645494,-663.92,0.00016438,2]
[333908866,1722624645503,-653.97,0.00016438,2]
[333908867,1722624645513,-500.0,0.00016438,2]
[333908868,1722624645522,-837.97,0.00016438,2]
[333908869,1722624645532,-500.0,0.00016438,2]
[333908870,1722624645542,-2437.42,0.00016438,2]
[333908871,1722624645552,-675.31,0.00016438,2]
[333908872,1722624645562,-666.13,0.00016438,2]
[333908873,1722624645571,-500.0,0.00016438,2]
[333908874,1722624645581,-1712.31,0.00016438,2]
[333908875,1722624645590,-151.0,0.00016438,2]
[333908876,1722624645604,-297.950016,0.00016438,2]
[333908877,1722624645614,-500.0,0.00016438,2]
[333908878,1722624645623,-500.0,0.00016438,2]
[333908879,1722624645633,-500.0,0.00016438,2]
[333908880,1722624645643,-1690.13,0.00016438,2]
[333908881,1722624645653,-500.0,0.00016438,2]
[333908882,1722624645663,-500.0,0.00016438,2]
[333908883,1722624645672,-737.16,0.00016438,2]
[333908884,1722624645682,-500.0,0.00016438,2]
[333908885,1722624645691,-269.74,0.00016438,2]
[333908886,1722624645701,-500.0,0.00016438,2]
[333908887,1722624645710,-500.0,0.00016438,2]
[333908888,1722624645720,-988.5,0.00016438,2]
[333908889,1722624645729,-500.0,0.00016438,2]
[333908890,1722624645739,-614.53,0.00016438,2]
[333908891,1722624645748,-500.0,0.00016438,2]
[333908892,1722624645758,-1942.68,0.00016438,2]
[333908893,1722624645767,-625.0,0.00016438,2]
[333908894,1722624645777,-1613.67,0.00016438,2]
[333908895,1722624645786,-1037.01,0.00016438,2]
[333908896,1722624645796,-500.0,0.00016438,2]
[333908897,1722624645805,-500.0,0.00016438,2]
[333908898,1722624645815,-500.0,0.00016438,2]
[333908899,1722624645824,-500.0,0.00016438,2]
[333908900,1722624645834,-583.23,0.00016438,2]
[333908901,1722624645844,-500.0,0.00016438,2]
[333908902,1722624645863,-731.57,0.00016438,2]
[333908903,1722624645873,-500.0,0.00016438,2]
[333908904,1722624645882,-913.35,0.00016438,2]
[333908905,1722624645891,-500.0,0.00016438,2]
[333908906,1722624645901,-500.0,0.00016438,2]
[333908907,1722624645910,-500.0,0.00016438,2]
[333908908,1722624645919,-549.48,0.00016438,2]
[333908909,1722624645929,-1465.92,0.00016438,2]
[333908910,1722624645938,-1620.76,0.00016438,2]
[333908911,1722624645948,-500.0,0.00016438,2]
[333908912,1722624645957,-500.0,0.00016438,2]
[333908913,1722624645966,-500.0,0.00016438,2]
[333908914,1722624645975,-652.31,0.00016438,2]
[333908915,1722624645984,-500.0,0.00016438,2]
[333908916,1722624645994,-240.41335992,0.00016438,2]
[333908917,1722624646003,-500.0,0.00016438,2]
[333908918,1722624646013,-552.25,0.00016438,2]
[333908919,1722624646023,-500.0,0.00016438,2]
[333908920,1722624646033,-1213.88,0.00016438,2]
[333908921,1722624646042,-500.0,0.00016438,2]
[333908922,1722624646052,-500.0,0.00016438,2]
[333908923,1722624646061,-630.74791657,0.00016438,2]
[333908924,1722624646073,-500.0,0.00016438,2]
[333908925,1722624646082,-527.42,0.00016438,2]
[333908926,1722624646092,-400.0,0.00016438,2]
[333908927,1722624646107,-1287.73,0.00016438,2]
[333908928,1722624646117,-2322.9,0.00016438,2]
[333908929,1722624646126,-1429.67,0.00016438,2]
[333908930,1722624646135,-150.0,0.00016438,2]
[333908932,1722624646145,-772.62,0.00016438,2]
[333908934,1722624646154,-1651.62,0.00016438,2]
[333908936,1722624646163,-720.98,0.00016438,2]
[333908938,1722624646174,-500.0,0.00016438,2]
[333908940,1722624646183,-1094.54,0.00016438,2]
[333908941,1722624646192,-734.38,0.00016438,2]
[333908942,1722624646201,-500.0,0.00016438,2]
[333908943,1722624646211,-500.0,0.00016438,2]
[333908944,1722624646220,-500.0,0.00016438,2]
[333908945,1722624646230,-669.03,0.00016438,2]
[333908946,1722624646239,-947.35,0.00016438,2]
[333908947,1722624646248,-500.0,0.00016438,2]
[333908948,1722624646258,-500.0,0.00016438,2]
[333908950,1722624646268,-500.0,0.00016438,2]
[333908952,1722624646278,-506.37,0.00016438,2]
[333908953,1722624646288,-1368.34,0.00016438,2]
[333908954,1722624646298,-762.5,0.00016438,2]
[333908955,1722624646307,-597.7,0.00016438,2]
[333908956,1722624646317,-752.81,0.00016438,2]
[333908957,1722624646328,-964.95,0.00016438,2]
[333908958,1722624646338,-500.0,0.00016438,2]
[333908959,1722624646354,-500.0,0.00016438,2]
[333908960,1722624646364,-1620.61,0.00016438,2]
[333908962,1722624646374,-737.74,0.00016438,2]
[333908963,1722624646384,-547.74,0.00016438,2]
[333908964,1722624646394,-500.0,0.00016438,2]
[333908965,1722624646404,-1068.16,0.00016438,2]
[333908966,1722624646414,-1171.23,0.00016438,2]
[333908967,1722624646424,-500.0,0.00016438,2]
[333908968,1722624646434,-583.2101792,0.00016438,2]
[333908969,1722624646449,-500.0,0.00016438,2]
[333908970,1722624646460,-500.0,0.00016438,2]
[333908971,1722624646469,-1110.18,0.00016438,2]
[333908972,1722624646479,-3303.41,0.00016438,2]
[333908973,1722624646488,-500.0,0.00016438,2]
[333908974,1722624646498,-500.0,0.00016438,2]
[333908975,1722624646508,-500.0,0.00016438,2]
[333908976,1722624646518,-1891.87,0.00016438,2]
[333908977,1722624646527,-500.0,0.00016438,2]
[333908978,1722624646537,-1695.39,0.00016438,2]
[333908979,1722624646547,-500.0,0.00016438,2]
[333908980,1722624646557,-500.0,0.00016438,2]
[333908981,1722624646566,-2810.72,0.00016438,2]
[333908982,1722624646576,-1217.33,0.00016438,2]
[333908983,1722624646586,-500.0,0.00016438,2]
[333908984,1722624646595,-970.49,0.00016438,2]
[333908985,1722624646613,-500.0,0.00016438,2]
[333908986,1722624646623,-1170.88,0.00016438,2]
[333908987,1722624646633,-500.0,0.00016438,2]
[333908988,1722624646643,-2628.9,0.00016438,2]
[333908989,1722624646652,-500.0,0.00016438,2]
[333908990,1722624646662,-500.0,0.00016438,2]
[333908991,1722624646672,-500.0,0.00016438,2]
[333908992,1722624646682,-1111.66,0.00016438,2]
[333908993,1722624646692,-1156.95,0.00016438,2]
[333908994,1722624646702,-500.0,0.00016438,2]
[333908995,1722624646712,-500.0,0.00016438,2]
[333908996,1722624646722,-500.0,0.00016438,2]
[333908997,1722624646731,-1967.33,0.00016438,2]
[333908998,1722624646741,-500.0,0.00016438,2]
[333908999,1722624646751,-500.0,0.00016438,2]
[333909000,1722624646761,-500.0,0.00016438,2]
[333909001,1722624646771,-726.61,0.00016438,2]
[333909002,1722624646782,-1809.6,0.00016438,2]
[333909003,1722624646792,-592.49,0.00016438,2]
[333909004,1722624646803,-500.0,0.00016438,2]
[333909005,1722624646813,-1349.49,0.00016438,2]
[333909006,1722624646823,-500.0,0.00016438,2]
[333909007,1722624646833,-500.0,0.00016438,2]
[333909008,1722624646844,-500.0,0.00016438,2]
[333909009,1722624646854,-982.35,0.00016438,2]
[333909010,1722624646865,-500.0,0.00016438,2]
[333909011,1722624646875,-2035.0,0.00016438,2]
[333909012,1722624646886,-568.25,0.00016438,2]
[333909013,1722624646896,-877.71,0.00016438,2]
[333909014,1722624646906,-1096.33,0.00016438,2]
[333909015,1722624646916,-500.0,0.00016438,2]
[333909016,1722624646926,-500.0,0.00016438,2]
[333909017,1722624646936,-500.0,0.00016438,2]
[333909018,1722624646947,-500.0,0.00016438,2]
[333909019,1722624646956,-1083.34,0.00016438,2]
[333909020,1722624646966,-500.0,0.00016438,2]
[333909021,1722624646976,-2150.28,0.00016438,2]
[333909022,1722624646986,-1000.0,0.00016438,2]
[333909023,1722624646996,-2400.39,0.00016438,2]
[333909024,1722624647005,-813.93,0.00016438,2]
[333909025,1722624647015,-2226.95,0.00016438,2]
[333909026,1722624647025,-694.27,0.00016438,2]
[333909027,1722624647035,-623.62,0.00016438,2]
[333909028,1722624647044,-500.0,0.00016438,2]
[333909029,1722624647054,-500.0,0.00016438,2]
[333909030,1722624647063,-500.0,0.00016438,2]
[333909031,1722624647072,-1555.06,0.00016438,2]
[333909032,1722624647082,-500.0,0.00016438,2]
[333909033,1722624647091,-607.84,0.00016438,2]
[333909034,1722624647106,-500.0,0.00016438,2]
[333909035,1722624647116,-897.49,0.00016438,2]
[333909036,1722624647125,-500.0,0.00016438,2]
[333909037,1722624647135,-500.0,0.00016438,2]
[333909038,1722624647145,-2075.72,0.00016438,2]
[333909039,1722624647154,-1038.98,0.00016438,2]
[333909041,1722624647164,-1287.73,0.00016438,2]
[333909043,1722624647173,-4314.47,0.00016438,2]
[333909045,1722624647183,-384.34885919,0.00016438,2]
[333909047,1722624647193,-1022.28,0.00016438,2]
[333909049,1722624647202,-500.0,0.00016438,2]
[333909051,1722624647212,-1662.34,0.00016438,2]
[333909053,1722624647221,-500.0,0.00016438,2]
[333909055,1722624647231,-768.56,0.00016438,2]
[333909057,1722624647240,-1358.58,0.00016438,2]
[333909059,1722624647250,-1586.26,0.00016438,2]
[333909061,1722624647259,-2337.4,0.00016438,2]
[333909063,1722624647269,-500.0,0.00016438,2]
[333909065,1722624647279,-500.0,0.00016438,2]
[333909067,1722624647289,-500.0,0.00016438,2]
[333909069,1722624647299,-500.0,0.00016438,2]
[333909071,1722624647311,-1506.11,0.00016438,2]
[333909073,1722624647321,-500.0,0.00016438,2]
[333909076,1722624647336,-500.0,0.00016438,2]
[333909078,1722624647346,-604.79,0.00016438,2]
[333909080,1722624647356,-2550.07,0.00016438,2]
[333909082,1722624647366,-502.43,0.00016438,2]
[333909084,1722624647378,-1654.36,0.00016438,2]
[333909086,1722624647389,-785.8,0.00016438,2]
[333909088,1722624647399,-500.0,0.00016438,2]
[333909090,1722624647413,-500.0,0.00016438,2]
[333909092,1722624647423,-1774.82,0.00016438,2]
[333909095,1722624647434,-688.72,0.00016438,2]
[333909097,1722624647443,-500.0,0.00016438,2]
[333909099,1722624647453,-500.0,0.00016438,2]
[333909101,1722624647463,-1111.67,0.00016438,2]
[333909103,1722624647473,-500.0,0.00016438,2]
[333909105,1722624647484,-702.84,0.00016438,2]
[333909107,1722624647494,-586.35,0.00016438,2]
[333909109,1722624647506,-500.0,0.00016438,2]
[333909111,1722624647516,-500.0,0.00016438,2]
[333909113,1722624647528,-1180.25,0.00016438,2]
[333909116,1722624647538,-1547.88,0.00016438,2]
[333909118,1722624647549,-614.29,0.00016438,2]
[333909120,1722624647559,-500.0,0.00016438,2]
[333909122,1722624647568,-500.0,0.00016438,2]
[333909124,1722624647578,-4076.27,0.00016438,2]
[333909126,1722624647587,-500.0,0.00016438,2]
[333909128,1722624647596,-1998.89,0.00016438,2]
[333909130,1722624647605,-500.0,0.00016438,2]
[333909132,1722624647615,-1084.06,0.00016438,2]
[333909134,1722624647624,-534.3,0.00016438,2]
[333909136,1722624647634,-718.32,0.00016438,2]
[333909138,1722624647643,-760.95,0.00016438,2]
[333909140,1722624647652,-1315.82,0.00016438,2]
[333909142,1722624647662,-500.0,0.00016438,2]
[333909143,1722624647671,-949.37,0.00016438,2]
[333909145,1722624647680,-807.38,0.00016438,2]
[333909148,1722624647691,-3074.3,0.00016438,2]
[333909150,1722624647701,-500.0,0.00016438,2]
[333909152,1722624647710,-2460.06,0.00016438,2]
[333909154,1722624647720,-500.0,0.00016438,2]
[333909156,1722624647729,-500.0,0.00016438,2]
[333909170,1722624647854,-1142.03,0.00016438,2]
[333909172,1722624647864,-2170.17,0.00016438,2]
[333909174,1722624647873,-2837.02,0.00016438,2]
[333909176,1722624647883,-500.0,0.00016438,2]
[333909178,1722624647892,-500.41,0.00016438,2]
[333909180,1722624647902,-500.0,0.00016438,2]
[333909182,1722624647911,-4145.15,0.00016438,2]
[333909184,1722624647921,-500.0,0.00016438,2]
[333909186,1722624647930,-500.0,0.00016438,2]
[333909188,1722624647939,-500.0,0.00016438,2]
[333909190,1722624647949,-638.51,0.00016438,2]
[333909192,1722624647958,-508.43,0.00016438,2]
[333909194,1722624647967,-1862.25,0.00016438,2]
[333909196,1722624647976,-500.0,0.00016438,2]
[333909197,1722624647986,-500.0,0.00016438,2]
[333909199,1722624647995,-1009.52,0.00016438,2]
[333909201,1722624648004,-500.0,0.00016438,2]
[333909203,1722624648013,-1738.55,0.00016438,2]
[333909205,1722624648023,-2160.61,0.00016438,2]
[333909207,1722624648032,-500.0,0.00016438,2]
[333909209,1722624648042,-691.63,0.00016438,2]
[333909211,1722624648052,-887.52,0.00016438,2]
[333909213,1722624648061,-1327.61,0.00016438,2]
[333909215,1722624648070,-2399.33,0.00016438,2]
[333909217,1722624648080,-500.0,0.00016438,2]
[333909219,1722624648089,-500.0,0.00016438,2]
[333909221,1722624648099,-500.0,0.00016438,2]
[333909223,1722624648108,-500.0,0.00016438,2]
[333909225,1722624648118,-500.0,0.00016438,2]
[333909227,1722624648127,-1378.45,0.00016438,2]
[333909229,1722624648136,-801.09,0.00016438,2]
[333909231,1722624648145,-1423.99,0.00016438,2]
[333909233,1722624648154,-500.0,0.00016438,2]
[333909235,1722624648163,-1115.96,0.00016438,2]
[333909237,1722624648172,-640.76,0.00016438,2]
[333909239,1722624648181,-509.36040539,0.00016438,2]
[333909241,1722624648190,-500.0,0.00016438,2]
[333909243,1722624648200,-500.0,0.00016438,2]
[333909245,1722624648210,-500.0,0.00016438,2]
[333909247,1722624648219,-500.0,0.00016438,2]
[333909249,1722624648228,-4136.71,0.00016438,2]
[333909251,1722624648237,-1039.17,0.00016438,2]
[333909253,1722624648246,-151.0,0.00016438,2]
[333909255,1722624648255,-233.29465019,0.00016438,2]
[333909257,1722624648264,-1990.65,0.00016438,2]
[333909259,1722624648273,-1288.94,0.00016438,2]
[333909261,1722624648282,-500.0,0.00016438,2]
[333909262,1722624648291,-1487.26,0.00016438,2]
[333909264,1722624648300,-500.0,0.00016438,2]
[333909266,1722624648310,-500.0,0.00016438,2]
[333909268,1722624648319,-500.0,0.00016438,2]
[333909270,1722624648329,-1204.97,0.00016438,2]
[333909272,1722624648338,-500.0,0.00016438,2]
[333909274,1722624648348,-500.0,0.00016438,2]
[333909276,1722624648361,-927.77,0.00016438,2]
[333909278,1722624648370,-2617.75,0.00016438,2]
[333909280,1722624648379,-1866.23,0.00016438,2]
[333909282,1722624648388,-1570.42,0.00016438,2]
[333909284,1722624648398,-1343.35,0.00016438,2]
[333909286,1722624648408,-500.0,0.00016438,2]
[333909288,1722624648417,-1017.48,0.00016438,2]
[333909290,1722624648426,-500.0,0.00016438,2]
[333909291,1722624648437,-1121.74,0.00016438,2]
[333909292,1722624648447,-500.0,0.00016438,2]
[333909293,1722624648458,-500.0,0.00016438,2]
[333909294,1722624648467,-1939.22,0.00016438,2]
[333909295,1722624648476,-500.0,0.00016438,2]
[333909296,1722624648486,-1317.65,0.00016438,2]
[333909297,1722624648495,-500.0,0.00016438,2]
[333909298,1722624648505,-672.7,0.00016438,2]
[333909299,1722624648515,-1414.68,0.00016438,2]
[333909301,1722624648525,-500.0,0.00016438,2]
[333909303,1722624648534,-500.0,0.00016438,2]
[333909305,1722624648543,-500.0,0.00016438,2]
[333909307,1722624648553,-1713.38,0.00016438,2]
[333909309,1722624648562,-2659.16,0.00016438,2]
[333909311,1722624648572,-1858.24,0.00016438,2]
[333909313,1722624648582,-3372.99,0.00016438,2]
[333909315,1722624648592,-1106.87,0.00016438,2]
[333909317,1722624648602,-1072.31,0.00016438,2]
[333909319,1722624648613,-715.49,0.00016438,2]
[333909321,1722624648622,-980.03,0.00016438,2]
[333909323,1722624648632,-500.0,0.00016438,2]
[333909325,1722624648642,-500.0,0.00016438,2]
[333909327,1722624648652,-2788.39,0.00016438,2]
[333909329,1722624648662,-1292.99,0.00016438,2]
[333909331,1722624648672,-701.22,0.00016438,2]
[333909333,1722624648681,-535.55,0.00016438,2]
[333909335,1722624648691,-500.0,0.00016438,2]
[333909337,1722624648701,-2313.75,0.00016438,2]
[333909339,1722624648711,-500.0,0.00016438,2]
[333909341,1722624648720,-1812.76,0.00016438,2]
[333909343,1722624648730,-817.92,0.00016438,2]
[333909345,1722624648740,-852.26,0.00016438,2]
[333909347,1722624648750,-494.63908439,0.00016438,2]
[333909349,1722624648759,-500.0,0.00016438,2]
[333909351,1722624648769,-500.0,0.00016438,2]
[333909353,1722624648779,-2405.21,0.00016438,2]
[333909355,1722624648789,-704.33,0.00016438,2]
[333909357,1722624648798,-500.0,0.00016438,2]
[333909359,1722624648808,-1536.01,0.00016438,2]
[333909361,1722624648818,-500.0,0.00016438,2]
[333909363,1722624648828,-500.0,0.00016438,2]
[333909365,1722624648837,-798.34,0.00016438,2]
[333909367,1722624648847,-1369.09,0.00016438,2]
[333909369,1722624648857,-2180.51,0.00016438,2]
[333909371,1722624648866,-500.0,0.00016438,2]
[333909373,1722624648876,-500.0,0.00016438,2]
[333909375,1722624648886,-500.0,0.00016438,2]
[333909377,1722624648896,-500.0,0.00016438,2]
[333909379,1722624648905,-500.0,0.00016438,2]
[333909381,1722624648915,-500.0,0.00016438,2]
[333909383,1722624648924,-1965.41,0.00016438,2]
[333909384,1722624648933,-500.0,0.00016438,2]
[333909386,1722624648943,-2201.43,0.00016438,2]
[333909388,1722624648952,-500.0,0.00016438,2]
[333909390,1722624648962,-3469.33,0.00016438,2]
[333909392,1722624648971,-500.0,0.00016438,2]
[333909394,1722624648981,-2706.16,0.00016438,2]
[333909396,1722624648991,-685.64,0.00016438,2]
[333909398,1722624649001,-2895.5,0.00016438,2]
[333909400,1722624649012,-1030.44,0.00016438,2]
[333909402,1722624649022,-1017.33,0.00016438,2]
[333909404,1722624649031,-500.0,0.00016438,2]
[333909406,1722624649041,-500.0,0.00016438,2]
[333909408,1722624649051,-500.0,0.00016438,2]
[333909410,1722624649061,-951.85,0.00016438,2]
[333909412,1722624649070,-500.0,0.00016438,2]
[333909414,1722624649079,-628.14,0.00016438,2]
[333909416,1722624649088,-654.94,0.00016438,2]
[333909418,1722624649098,-1737.52,0.00016438,2]
[333909420,1722624649107,-1880.62,0.00016438,2]
[333909421,1722624649117,-877.06,0.00016438,2]
[333909422,1722624649126,-500.0,0.00016438,2]
[333909423,1722624649135,-500.0,0.00016438,2]
[333909424,1722624649144,-500.0,0.00016438,2]
[333909425,1722624649153,-1108.59,0.00016438,2]
[333909426,1722624649163,-1063.93,0.00016438,2]
[333909427,1722624649172,-2525.18,0.00016438,2]
[333909428,1722624649182,-500.0,0.00016438,2]
[333909430,1722624649192,-500.0,0.00016438,2]
[333909432,1722624649201,-2006.08,0.00016438,2]
[333909434,1722624649211,-514.38,0.00016438,2]
[333909436,1722624649220,-1079.58,0.00016438,2]
[333909438,1722624649230,-1303.1,0.00016438,2]
[333909440,1722624649239,-2780.15,0.00016438,2]
[333909442,1722624649249,-500.0,0.00016438,2]
[333909444,1722624649259,-500.0,0.00016438,2]
[333909446,1722624649268,-500.0,0.00016438,2]
[333909448,1722624649277,-500.0,0.00016438,2]
[333909450,1722624649286,-2710.03,0.00016438,2]
[333909452,1722624649296,-500.0,0.00016438,2]
[333909454,1722624649305,-544.66,0.00016438,2]
[333909456,1722624649315,-500.0,0.00016438,2]
[333909458,1722624649325,-500.0,0.00016438,2]
[333909460,1722624649338,-1263.12,0.00016438,2]
[333909462,1722624649348,-500.0,0.00016438,2]
[333909463,1722624649357,-916.06,0.00016438,2]
[333909465,1722624649366,-1135.69,0.00016438,2]
[333909467,1722624649376,-1162.08,0.00016438,2]
[333909468,1722624649386,-500.0,0.00016438,2]
[333909470,1722624649395,-707.53,0.00016438,2]
[333909472,1722624649405,-500.0,0.00016438,2]
[333909473,1722624649415,-2478.32,0.00016438,2]
[333909475,1722624649425,-500.0,0.00016438,2]
[333909477,1722624649434,-2851.51,0.00016438,2]
[333909479,1722624649445,-2804.22,0.00016438,2]
[333909480,1722624649454,-500.0,0.00016438,2]
[333909482,1722624649464,-1424.35,0.00016438,2]
[333909484,1722624649473,-500.0,0.00016438,2]
[333909485,1722624649482,-1017.9,0.00016438,2]
[333909487,1722624649492,-1365.98,0.00016438,2]
[333909489,1722624649502,-500.0,0.00016438,2]
[333909490,1722624649511,-500.0,0.00016438,2]
[333909492,1722624649521,-500.0,0.00016438,2]
[333909494,1722624649530,-500.0,0.00016438,2]
[333909496,1722624649539,-500.0,0.00016438,2]
[333909497,1722624649548,-500.0,0.00016438,2]
[333909499,1722624649558,-576.15,0.00016438,2]
[333909501,1722624649567,-2715.02,0.00016438,2]
[333909502,1722624649576,-3096.6,0.00016438,2]
[333909504,1722624649586,-500.0,0.00016438,2]
[333909506,1722624649596,-2254.7,0.00016438,2]
[333909508,1722624649605,-1519.57,0.00016438,2]
[333909509,1722624649615,-2741.3,0.00016438,2]
[333909511,1722624649625,-500.0,0.00016438,2]
[333909513,1722624649635,-816.35,0.00016438,2]
[333909514,1722624649644,-1254.98,0.00016438,2]
[333909516,1722624649653,-1842.7,0.00016438,2]
[333909518,1722624649663,-500.0,0.00016438,2]
[333909520,1722624649673,-1174.06,0.00016438,2]
[333909521,1722624649682,-1255.21,0.00016438,2]
[333909523,1722624649691,-509.63,0.00016438,2]
[333909524,1722624649700,-500.0,0.00016438,2]
[333909526,1722624649710,-2220.87,0.00016438,2]
[333909528,1722624649719,-1000.0,0.00016438,2]
[333909530,1722624649728,-565.4,0.00016438,2]
[333909532,1722624649737,-1308.72,0.00016438,2]
[333909533,1722624649746,-1756.21,0.00016438,2]
[333909535,1722624649755,-500.0,0.00016438,2]
[333909537,1722624649764,-739.24,0.00016438,2]
[333909538,1722624649773,-592.86,0.00016438,2]
[333909540,1722624649782,-500.0,0.00016438,2]
[333909542,1722624649791,-500.0,0.00016438,2]
[333909544,1722624649800,-500.0,0.00016438,2]
[333909546,1722624649809,-500.0,0.00016438,2]
[333909547,1722624649818,-971.78,0.00016438,2]
[333909549,1722624649827,-2091.37,0.00016438,2]
[333909551,1722624649837,-3035.84,0.00016438,2]
[333909553,1722624649846,-500.0,0.00016438,2]
[333909555,1722624649856,-500.0,0.00016438,2]
[333909556,1722624649865,-500.0,0.00016438,2]
[333909558,1722624649875,-500.0,0.00016438,2]
[333909560,1722624649884,-500.0,0.00016438,2]
[333909562,1722624649893,-965.21,0.00016438,2]
[333909563,1722624649901,-500.0,0.00016438,2]
[333909565,1722624649910,-500.0,0.00016438,2]
[333909567,1722624649920,-1158.41,0.00016438,2]
[333909569,1722624649929,-500.0,0.00016438,2]
[333909571,1722624649938,-1555.04,0.00016438,2]
[333909572,1722624649947,-1178.31,0.00016438,2]
[333909574,1722624649956,-500.0,0.00016438,2]
[333909576,1722624649965,-825.51,0.00016438,2]
[333909578,1722624649974,-643.48,0.00016438,2]
[333909580,1722624649983,-778.72,0.00016438,2]
[333909581,1722624649992,-500.0,0.00016438,2]
[333909583,1722624650001,-500.0,0.00016438,2]
[333909585,1722624650010,-2068.69,0.00016438,2]
[333909587,1722624650019,-500.0,0.00016438,2]
[333909588,1722624650028,-2189.33,0.00016438,2]
[333909590,1722624650037,-1109.12,0.00016438,2]
[333909592,1722624650045,-1545.61,0.00016438,2]
[333909594,1722624650054,-841.75,0.00016438,2]
[333909596,1722624650065,-3593.18,0.00016438,2]
[333909598,1722624650076,-500.0,0.00016438,2]
[333909600,1722624650086,-539.82,0.00016438,2]
[333909601,1722624650096,-500.0,0.00016438,2]
[333909603,1722624650106,-1258.74,0.00016438,2]
[333909605,1722624650117,-500.0,0.00016438,2]
[333909607,1722624650128,-967.27,0.00016438,2]
[333909609,1722624650138,-500.0,0.00016438,2]
[333909611,1722624650147,-500.0,0.00016438,2]
[333909613,1722624650158,-500.0,0.00016438,2]
[333909614,1722624650167,-2311.14,0.00016438,2]
[333909616,1722624650177,-3346.2,0.00016438,2]
[333909618,1722624650187,-500.0,0.00016438,2]
[333909620,1722624650197,-1713.0,0.00016438,2]
[333909622,1722624650208,-1903.65,0.00016438,2]
[333909624,1722624650217,-1062.94,0.00016438,2]
[333909626,1722624650227,-441.26305002,0.00016438,2]
[333909627,1722624650235,-904.22,0.00016438,2]
[333909629,1722624650244,-1019.94,0.00016438,2]
[333909631,1722624650253,-500.0,0.00016438,2]
[333909633,1722624650262,-747.79,0.00016438,2]
[333909634,1722624650271,-1896.9,0.00016438,2]
[333909636,1722624650280,-599.56,0.00016438,2]
[333909638,1722624650289,-2193.01,0.00016438,2]
[333909640,1722624650298,-918.13,0.00016438,2]
[333909642,1722624650307,-500.0,0.00016438,2]
[333909643,1722624650315,-500.0,0.00016438,2]
[333909645,1722624650326,-500.0,0.00016438,2]
[333909647,1722624650335,-521.64,0.00016438,2]
[333909649,1722624650344,-2119.04,0.00016438,2]
[333909651,1722624650356,-500.0,0.00016438,2]
[333909653,1722624650367,-500.0,0.00016438,2]
[333909655,1722624650377,-545.03,0.00016438,2]
[333909657,1722624650386,-504.36760484,0.00016438,2]
[333909659,1722624650397,-758.57,0.00016438,2]
[333909660,1722624650407,-530.07,0.00016438,2]
[333909661,1722624650418,-2420.36,0.00016438,2]
[333909662,1722624650428,-768.52,0.00016438,2]
[333909663,1722624650438,-3810.13,0.00016438,2]
[333909664,1722624650448,-500.0,0.00016438,2]
[333909665,1722624650457,-2027.67,0.00016438,2]
[333909666,1722624650466,-500.0,0.00016438,2]
[333909667,1722624650475,-2566.62,0.00016438,2]